Cogmind - Beta 13 @@@ ROGUE MODE // 2024.04.06 @ 15:38:37 Player: SovietPaperclip Result: Destroyed by 8R-AWN with 8R-AWN's Boregun Performance ------------- Evolutions (0) 0 Regions Visited (3) 600 Robots Destroyed (21) 105 Value Destroyed (582) 582 Prototype IDs (25) 500 Alien Tech Used (0) 0 Bonus (285) 285 TOTAL SCORE: 2072 Bonus ------- Aligned with FarCom 300 Friendly Fire -15 Cogmind --------- Core Integrity 0/250 Matter 235/300 Energy 55/160 System Corruption 3% Temperature Cool (61) Movement Core (750) Ox14 Location -10/Exiles Parts ------- > --- POWER (1) -------- Light Nuclear Core > --- PROPULSION (2) --- (None) > --- UTILITY (2) ------ Large Storage Unit > --- WEAPON (2) ------- YOLO Cannon > --- INVENTORY (15) --- Light Nuclear Core Light Treads Light Treads Improved Treads Improved Treads Medium Storage Unit Structural Scanner Sensor Array Signal Interpreter Autogun Autogun Makeshift Sword Peak State ------------ > --- POWER ------------ Light Nuclear Core > --- PROPULSION ------- Improved Treads Improved Treads > --- UTILITY ---------- Improved Heat Sink Large Storage Unit > --- WEAPON ----------- YOLO Cannon > --- INVENTORY -------- Light Nuclear Core Light Treads Light Treads Improved Treads Improved Treads Medium Storage Unit Structural Scanner Sensor Array Signal Interpreter Autogun Autogun Makeshift Sword [Rating: 33] Favorites ----------- Power Ion Engine Engine Ion Engine Power Core Light Nuclear Core Propulsion Improved Treads Treads Improved Treads Utility Improved Heat Sink Device Improved Heat Sink Storage Large Storage Unit Weapon Autogun Energy Cannon YOLO Cannon Ballistic Gun Autogun Launcher Grenade Launcher Build | -11 -10 -10 -10 ------- Run | Yrd Mat Min Exi Slots Evolved . | . . . . Power . | . . . . Propulsion . | . . . . Utility . | . . . . Weapon . | . . . . Parts Attached 16 | 5 7 2 2 Power 2 | 1 . . 1 Engine 1 | 1 . . . Core 1 | . . . 1 Reactor . | . . . . Propulsion 4 | 2 2 . . Treads 4 | 2 2 . . Leg . | . . . . Wheel . | . . . . Hover . | . . . . Flight . | . . . . Utility 3 | 1 2 . . Device 1 | . 1 . . Storage 2 | 1 1 . . Processor . | . . . . Hackware . | . . . . Protection . | . . . . Artifact . | . . . . Weapon 7 | 1 3 2 1 Energy Gun . | . . . . Energy Cannon 1 | . . . 1 Ballistic Gun 4 | 1 2 1 . Ballistic Cannon . | . . . . Launcher 2 | . 1 1 . Special Weapon . | . . . . Impact Weapon . | . . . . Slashing Weapon . | . . . . Piercing Weapon . | . . . . Special Melee Weapon . | . . . . Unidentified Prototypes . | . . . . Parts Lost 5 | . 1 . 4 Power 1 | . . . 1 Propulsion 2 | . . . 2 Utility 1 | . . . 1 Weapon 1 | . 1 . . Highest Loss Streak 4 | . 1 . 4 To Critical Strikes 2 | . . . 2 Average Slot Usage (%) 96 | . 94 100 93 Engine 13 | . 14 14 13 Treads 27 | . 28 28 27 Device 13 | . 12 14 13 Storage 14 | . 14 14 14 Ballistic Gun 21 | . 17 27 17 Launcher 2 | . 6 . . Naked Turns . | . . . . Heaviest Build 44 | 12 32 32 44 Greatest Support 46 | 40 46 46 46 Greatest Overweight (x) . | . . . . Average Overweight (x) . | . . . . Largest Inventory Capacity 15 | 8 15 15 15 Average Capacity 14 | 7 13 15 15 Most Carried 15 | 2 12 14 15 Average Carried 9 | . 5 13 13 Final Capacity 15 | 8 15 15 15 Final Carried 14 | 1 10 14 12 Class Distribution -------------------- 100% | Mutant Dominant Class ---------------- Mutant | -10/Materials Mutant | -10/Mines Mutant | -10/Exiles Resources | -11 -10 -10 -10 ----------- Run | Yrd Mat Min Exi Matter Collected 730 | 201 289 240 . Remotely . | . . . . Salvage Created 704 | . 451 218 35 Parts 43 | . 32 11 . Haulers Intercepted 2 | . 2 . . Recyclers Shooed . | . . . . Parts Field Recycled . | . . . . Retrieved Matter . | . . . . Parts Self-Destructed . | . . . . Prevented . | . . . . Kills | -11 -10 -10 -10 ------- Run | Yrd Mat Min Exi Combat Hostiles Destroyed 19 | . 10 4 5 Guns 10 | . 7 3 . AOE 8 | . 3 1 4 Classes Destroyed 8 | . 5 2 1 Builder 1 | . . 1 . Tunneler 1 | . 1 . . Hauler 2 | . 2 . . Recycler 1 | . . 1 . Operator 1 | . 1 . . Watcher 1 | . 1 . . Grunt 14 | . 10 4 . Assembled 5 | . . . 5 Best Kill Streak 5 | . 3 2 5 Combat Bots Only 5 | . 2 2 5 Max Kills in Single Turn 5 | . 3 1 5 Gunslinging . | . . . . Exploded 4 | . 2 1 4 Melee . | . . . . Uniques/NPCs Destroyed . | . . . . Combat | -11 -10 -10 -10 -------- Run | Yrd Mat Min Exi Hostile Shots Fired 119 | . 57 12 50 Missed 37 | . 17 5 15 Damage Taken 1280 | . 508 96 676 Core 261 | . 91 11 159 Absorbed by Shields . | . . . . Core Remaining (%) 100 | 100 . . . Volleys Fired 84 | . 63 16 5 Largest 2 | . 2 2 1 Hottest 100 | . 50 56 100 Shots Fired 109 | . 73 31 5 Gun 89 | . 63 26 . Cannon 5 | . . . 5 Launcher 15 | . 10 5 . Special . | . . . . Kinetic 89 | . 63 26 . Thermal 5 | . . . 5 Explosive 15 | . 10 5 . Electromagnetic . | . . . . Robot Hit Streak 10 | . 10 6 2 Robot Miss Streak 3 | . 3 2 3 Penetration Max . | . . . . Secondary Targets . | . . . . Shots Hit Robots 58 | . 39 17 2 Core Hits 42 | . 27 10 5 Critical Kills 3 | . 1 1 1 Critical Parts Destroyed 1 | . 1 . . Critical Strikes 4 | . 2 1 1 Meltdown 1 | . . . 1 Destroy 3 | . 2 1 . Melee Attacks . | . . . . Impact . | . . . . Slashing . | . . . . Piercing . | . . . . Sneak Attacks . | . . . . Combat Hostiles . | . . . . Follow-up Attacks . | . . . . Damage Inflicted 1962 | . 971 466 525 Guns 789 | . 596 193 . Cannons 172 | . . . 172 Explosions 995 | . 375 267 353 Melee . | . . . . Ramming 6 | . . 6 . Kinetic 789 | . 596 193 . Thermal 525 | . . . 525 Explosive 642 | . 375 267 . Electromagnetic . | . . . . Impact . | . . . . Slashing . | . . . . Piercing . | . . . . Highest Corruption 3 | . 2 2 3 Average Corruption 2 | . 2 2 2 Corruption Purged . | . . . . Corruption Blocked . | . . . . Effects 22 | . 4 13 5 Message Errors 11 | . 3 6 2 Matter Fused 3 | . . 3 . Heat Flow Errors 1 | . . 1 . Data Loss (minor) 5 | . 1 2 2 Data Loss (major) 1 | . . . 1 Weapon Failures 1 | . . 1 . Overload Shots . | . . . . Overflow Damage 46 | . . . 46 Projectiles 26 | . . . 26 Explosions 20 | . . . 20 Melee . | . . . . Knockbacks . | . . . . Impact . | . . . . Kinetic . | . . . . Secondary . | . . . . Self-Inflicted Damage 137 | . . 20 117 Shots 3 | . . 1 2 Rammed 2 | . . 2 . Targets Rammed 2 | . . 2 . Kicked . | . . . . Crushed . | . . . . Highest Temperature 257 | . 3 257 61 Average Temperature 75 | . 3 142 41 Received Heat Transfer 351 | . 306 45 . Siege Activations . | . . . . Robots Corrupted . | . . . . Combat Hostiles . | . . . . Parts Fried . | . . . . Impact Corruptions . | . . . . Robots Melted 1 | . . . 1 Combat Hostiles 1 | . . . 1 Parts Melted . | . . . . Heat Transferred 600 | . . . 600 Parts Sabotaged . | . . . . Parts Stolen . | . . . . Parts Stripped . | . . . . Power Chain Reactions . | . . . . Alert | -11 -10 -10 -10 ------- Run | Yrd Mat Min Exi Peak Influence 229 | . 229 138 . Initial . | . . . . Average 69 | . 107 37 . Maximum Alert Level 1 | . 1 . . Low Security (%) 93 | 100 86 100 . Level 1 6 | . 13 . . Level 2 . | . . . . Level 3 . | . . . . Level 4 . | . . . . Level 5 . | . . . . High Security . | . . . . Max Security . | . . . . Squads Dispatched 1 | . 1 . . Investigation . | . . . . Extermination . | . . . . Reinforcement 1 | . 1 . . Assault . | . . . . Garrison . | . . . . Intercept . | . . . . Searches Triggered . | . . . . Construction Impeded . | . . . . Haulers Reinforced . | . . . . Active Scanning Responses . | . . . . Cargo Convoy Interrupts . | . . . . Stealth | -11 -10 -10 -10 --------- Run | Yrd Mat Min Exi Distress Signals 2 | . 2 . . Communications Jammed . | . . . . Distress Signals . | . . . . Times Spotted 36 | . 24 4 8 Peak Tracking Total 9 | . 3 2 9 Tactical Retreats . | . . . . Traps | -11 -10 -10 -10 ------- Run | Yrd Mat Min Exi Traps Triggered 1 | . 1 . . Indirectly . | . . . . Trap Hack Attempts . | . . . . Triggered . | . . . . Disarmed . | . . . . Reprogrammed . | . . . . Reused . | . . . . Traps Extracted . | . . . . Installed . | . . . . Triggered . | . . . . Machines | -11 -10 -10 -10 ---------- Run | Yrd Mat Min Exi Machines Disabled 2 | . . . 2 Max in Single Turn 2 | . . . 2 Machines Repaired . | . . . . Machines Dismantled . | . . . . Machines Sabotaged . | . . . . Overloaded Fab Kills . | . . . . Hacking | -11 -10 -10 -10 --------- Run | Yrd Mat Min Exi Machines Accessed 4 | . 2 . 2 Terminals 2 | . 2 . . Fabricators . | . . . . Repair Stations . | . . . . Recycling Units . | . . . . Scanalyzers . | . . . . Garrison Access . | . . . . Total Hacks 9 | . 4 . 5 Successful 8 | . 3 . 5 Failed 1 | . 1 . . Catastrophic 1 | . 1 . . Database Lockouts . | . . . . Manual 1 | . . . 1 Terminals 4 | . 4 . . Fabricators . | . . . . Repair Stations . | . . . . Recycling Units . | . . . . Scanalyzers . | . . . . Garrison Access . | . . . . Terminal Hacks 8 | . 3 . 5 Record 4 | . . . 4 Prototype ID Bank 1 | . 1 . . Alert Level 1 | . 1 . . Locate Traps 1 | . 1 . . Derelict Proto ID Bank 1 | . . . 1 Fabricator Hacks . | . . . . Repair Station Hacks . | . . . . Recycling Unit Hacks . | . . . . Scanalyzer . | . . . . Garrison Access Hacks . | . . . . Unauthorized Hacks . | . . . . Terminals . | . . . . Fabricators . | . . . . Repair Stations . | . . . . Recycling Units . | . . . . Scanalyzers . | . . . . Garrison Access . | . . . . Data Cores Recovered . | . . . . Used . | . . . . Hacking Detections 2 | . 2 . . Full Trace Events . | . . . . Feedback Events . | . . . . Feedback Blocked . | . . . . Robot Schematics Acquired . | . . . . Robots Built . | . . . . Authchips . | . . . . Time . | . . . . Total Robot Build Rating . | . . . . Part Schematics Acquired . | . . . . Parts Built . | . . . . Authchips . | . . . . Time . | . . . . Total Part Build Rating . | . . . . Parts Repaired . | . . . . Time . | . . . . Parts Recycled . | . . . . Recycled Matter . | . . . . Retrieved Matter . | . . . . Retrieved Components . | . . . . Parts Scanalyzed . | . . . . Part Schematics Acquired . | . . . . Parts Damaged . | . . . . Bothacking | -11 -10 -10 -10 ------------ Run | Yrd Mat Min Exi Used RIF Installer . | . . . . Robots Hacked . | . . . . Non-combat . | . . . . Combat . | . . . . Robot Hacks Applied . | . . . . Relay Couplers Released . | . . . . Fabnet Peak Effective % . | . . . . Robots Rewired . | . . . . Allies Hacked . | . . . . Hacks Repelled . | . . . . Allies | -11 -10 -10 -10 -------- Run | Yrd Mat Min Exi Total Allies 1 | . . 1 . Largest Group 1 | . . 1 . Highest-Rated Group 31 | . . 31 . Highest-Rated Ally 31 | . . 31 . Total Orders . | . . . . Ally Attacks . | . . . . Total Damage . | . . . . Kills . | . . . . Allies Corrupted . | . . . . Allies Melted . | . . . . Intel | -11 -10 -10 -10 ------- Run | Yrd Mat Min Exi Robot Analysis Total . | . . . . Derelict Logs Recovered 2 | . . 2 . Drone Launches . | . . . . Drone Recoveries . | . . . . Exploration | -11 -10 -10 -10 ------------- Run | Yrd Mat Min Exi Turns Passed 2274 | 67 906 917 384 Spaces Moved 1246 | 42 448 535 221 Core 9 | 9 . . . Treads 1237 | 33 448 535 221 Legs . | . . . . Wheels . | . . . . Hover . | . . . . Flight . | . . . . Fastest Speed 50 | 50 160 160 160 Average Speed 159 | 136 160 160 160 Slowest Speed 160 | 160 160 160 160 Overloaded Moves . | . . . . Propulsion Burnouts . | . . . . Robots Hopped . | . . . . Cave-ins Triggered . | . . . . Exploration Rate (%) 53 | 5 81 76 50 Regions Visited 3 Branch Regions 2 Pre-discovered Areas 2 | . . 1 1 Known Exits Taken . | . . . . Unknown Exits Taken 3 | 1 1 1 . Scrap Searched 1 | . . 1 . Spaces Dug . | . . . . Terrain Destroyed 122 | . 50 29 43 Melee . | . . . . Projectile 1 | . . . 1 AOE 121 | . 50 29 42 Terrain Rammed . | . . . . Walls Destroyed . | . . . . Machines Disabled . | . . . . Actions | -11 -10 -10 -10 --------- Run | Yrd Mat Min Exi Total 1425 | 52 567 568 238 Wait 36 | . 22 8 6 Move 1243 | 41 447 534 221 Hop . | . . . . Pick Up 32 | 6 20 5 1 Fast Attach . | . . . . Attach 11 | 5 4 . 2 Detach . | . . . . Swap 5 | . 3 2 . Drop 12 | . 8 1 3 Fire 84 | . 63 16 5 Melee . | . . . . Ram . | . . . . Kick . | . . . . Crush 2 | . . 2 . Escape Stasis . | . . . . Rewire . | . . . . Trap . | . . . . Miscellaneous . | . . . . Route ------- -11/Scrapyard -10/Materials (discovered 4 exits: [*Mat x3] / [*Min]) -10/Mines (discovered 2 exits: [*Mat] / *Exi) -10/Exiles History --------- Turn | Location | Event 16 | -11/Scrapyard | Discovered new exit (range 15) 68 | -11/Scrapyard | Entered Materials 274 | -10/Materials | Discovered new exit (range 7) 309 | -10/Materials | Build established: Mutant 623 | -10/Materials | Discovered new exit (range 3) 684 | -10/Materials | Discovered new exit (range 14) 827 | -10/Materials | Discovered new exit (range 6) 974 | -10/Materials | Entered Mines 983 | -10/Mines | Met a Derelict bent on vengeance 1084 | -10/Mines | Received a Rocket Launcher from a helpful Derelict 1104 | -10/Mines | Discovered new exit (range 11) 1109 | -10/Mines | Received a Mining Laser from a helpful Derelict 1297 | -10/Mines | Learned 2 Materials zone layouts 1304 | -10/Mines | A weapon hastily lodged in a ceiling crevice suddenly fell to the ground 1688 | -10/Mines | Deemed a non-threat by the Exiles lab entrance 1688 | -10/Mines | Discovered new exit (range 5) 1787 | -10/Mines | Assembled infested the area 1891 | -10/Mines | Entered Exiles 1928 | -10/Exiles | Met 8R-AWN 1957 | -10/Exiles | Met EX-HEX 2021 | -10/Exiles | Met EX-DEC 2027 | -10/Exiles | Learned location of Zion (-7) 2053 | -10/Exiles | Met EX-BIN 2075 | -10/Exiles | Aligned with FarCom system 2077 | -10/Exiles | Given EX-Vault access code 2114 | -10/Exiles | Opened EX-Vault 2129 | -10/Exiles | Found YOLO Cannon 2167 | -10/Exiles | Warned to stay clear of 0b10 Research branches 2250 | -10/Exiles | Attacked by the Exiles 2250 | -10/Exiles | Core integrity fell below 50% 2267 | -10/Exiles | Core integrity fell below 20% 2275 | -10/Exiles | Destroyed by 8R-AWN with 8R-AWN's Boregun Last Messages --------------- 02262_ as-35213 destroyed. 02262_ as-07243 destroyed. 02262_ as-38734 destroyed. 02262_ as-63939 destroyed. 02264_ HV Slug penetrates Wall. 02264_ Penetrated by HV Slug. 02264_ HV Slug penetrates Wall. 02266_ HV Slug penetrates Earth. 02268_ Penetrated by HV Slug. 02268_ HV Slug penetrates Wall. 02271_ HV Slug penetrates Machine. 02271_ Penetrated by HV Slug. 02271_ Critical hit (Destroy). 02271_ Imp. Treads destroyed. 02271_ HV Slug penetrates Wall. 02273_ Penetrated by HV Slug. 02273_ HV Slug penetrates Wall. 02273_ HV Slug penetrates Machine. 02273_ HV Slug penetrates Wall. 02275_ Penetrated by HV Slug. Map ----- +----------------------------------------------------+ | """#?????????????????????????????????????????????? | | """#?????????????????????????????????????????????? | | """#?????????????????????????????????????????????? | | """#?????????????????????????????????????????????? | | """"?????????????????????????????????????????????? | | """#?????????????????????????????????????????????? | | """"?????????????????????????????????????????????? | | #?????????????????????????????????????????????? | | """#?????????????????????????????????????????????? | | ####?????????????????????????????????????????????? | | ?????????????????????????????????????????????????? | | ?????????????????????????????????????????????????? | | ?????????????????????????????????????????????????? | | #########????????????????????????????????????????? | | """""""""##??????????????????????????????????????? | | " """ """"##?????????####????????????????????# ??? | | "" " #????????## ####???????????????# ? | | " """#???????## ##?????????????# | | " "#???????# #?????????????# | | " "##??????# #????????????## | | ""###????# g #???????????## #? | | """#????# #???????????# #? | | "#????#; ;##????????### #?? | | ##???# ########## #?? | | ##?## %% #""""## #??? | | ### % @ * ##?? | | a ; * #?? | | a %;; ; ##? | | ##; ""#### ## | | #"" ;# #;#####??#### * | | ######? ?##?????????##### | | ##??????#????????????????### | | " ##??????????????????????????### | | """ ""#?????????????????????????????### | | ""#" "##??????????????????????????????#" | | """##"""""""##???????????????????????????????#### | | """#?#########???????????????????????????????????# | | ##???????????????????????????????????????????????# | | ?????????????????????????????????????????????????? | | ?????????????????????????????????????????????????? | | ?????????????????????????????????????????????????? | | ?????????????????????????????????????????????????? | | ?????????????????????????????????????????????????? | | ?????????????????????????????????????????????????? | | ?????????????????????????????????????????????????? | | ?????????????????????????????????????????????????? | | ?????????????????????????????????????????????????? | | ?????????????????????????????????????????????????? | | ?????????????????????????????????????????????????? | | ?????????????????????????????????????????????????? | +----------------------------------------------------+ Best States ------------- Heat Dissipation 39 Energy Generation 14 Energy Capacity 250 Matter Stores 290 Matter Capacity 300 Sight Range 16 Terrain Scan Density 10 Evasion (%) 40 Recoil Reduction 2 Item Schematics ----------------- None Robot Schematics ------------------ None Fabricated ------------ Nothing Alien Tech Used ----------------- None Achievements -------------- None Challenges ------------ None Game ------ Seed WeaponsTacticalCarapace Manual? 0 Play Time 00:14:41 Cumulative 46.4 hours Start 2024.04.06 @ 15:23:23 End 2024.04.06 @ 15:38:37 Sessions 1 Manual Loads 0 Difficulty Rogue Special Mode None Game No. 63 Rogue 63 Adventurer 0 Explorer 0 Win Type - Total 1 Types 1/0/0/0/0/0/0/0/0 Lore% 28 Gallery% 30 Achievement% 31 Wizard Run 0 Options --------- Layout 1 ASCII 0 Keyboard 0 Movement Mouse Keybinds 0 Fullscreen 2 Font 32/Smallcaps Map View 50x40 Zoom Use 0% Tactical HUD 1 Map Filters NONE Filters NONE Steam 1 RUN: dc9df1b1-5c30-4193-830b-c114e5406eb4